[Event "Titled Tuesday Blitz April 19 Early 2022"]
[White "Gatterer, Florian"]
[Black "Shuvalov, Evgenij"]
[WhiteFideId "811688"]
[BlackFideId "4187237"]
[WhiteElo "2218"]
[BlackElo "2130"]
[Result "0-1"]
[Round "07"]
[TimeControl "180+1"]
[Date "2022.04.19"]
[WhiteClock "0:00:03"]
[BlackClock "0:01:00"]

1. f4 {[%clk 0:03:00]}  e5 {[%clk 0:02:59]} 2. fxe5 {[%clk 0:03:00]}  d6 {[%clk 0:02:59]} 3. exd6 {[%clk 0:02:58]}  Bxd6 {[%clk 0:02:59]} 4. Nf3 {[%clk 0:02:57]}  g5 {[%clk 0:02:58]} 5. d4 {[%clk 0:02:57]}  g4 {[%clk 0:02:57]} 6. Ne5 {[%clk 0:02:55]}  Bxe5 {[%clk 0:02:52]} 7. dxe5 {[%clk 0:02:55]}  Qxd1+ {[%clk 0:02:53]} 8. Kxd1 {[%clk 0:02:54]}  Nc6 {[%clk 0:02:53]} 9. Nc3 {[%clk 0:02:45]}  Be6 {[%clk 0:02:45]} 10. Bf4 {[%clk 0:02:17]}  O-O-O+ {[%clk 0:02:43]} 11. Kc1 {[%clk 0:02:17]}  Nge7 {[%clk 0:02:43]} 12. e3 {[%clk 0:02:11]}  Ng6 {[%clk 0:02:42]} 13. Bb5 {[%clk 0:01:46]}  Ngxe5 {[%clk 0:02:27]} 14. Bxc6 {[%clk 0:01:42]}  Nxc6 {[%clk 0:02:27]} 15. a3 {[%clk 0:01:36]}  Rhg8 {[%clk 0:02:14]} 16. Rd1 {[%clk 0:01:34]}  h5 {[%clk 0:02:02]} 17. b3 {[%clk 0:01:18]}  f6 {[%clk 0:01:59]} 18. Kb2 {[%clk 0:01:16]}  Ne5 {[%clk 0:01:58]} 19. Rxd8+ {[%clk 0:01:11]}  Rxd8 {[%clk 0:01:58]} 20. Rd1 {[%clk 0:01:10]}  Rxd1 {[%clk 0:01:57]} 21. Nxd1 {[%clk 0:01:10]}  Ng6 {[%clk 0:01:56]} 22. g3 {[%clk 0:01:01]}  Bd5 {[%clk 0:01:46]} 23. Nf2 {[%clk 0:00:59]}  Bf3 {[%clk 0:01:45]} 24. Kc3 {[%clk 0:00:54]}  Kd7 {[%clk 0:01:44]} 25. Kd2 {[%clk 0:00:54]}  c6 {[%clk 0:01:44]} 26. Nd3 {[%clk 0:00:53]}  b6 {[%clk 0:01:41]} 27. b4 {[%clk 0:00:53]}  h4 {[%clk 0:01:37]} 28. Ne1 {[%clk 0:00:49]}  Be4 {[%clk 0:01:36]} 29. Bb8 {[%clk 0:00:39]}  a6 {[%clk 0:01:35]} 30. c4 {[%clk 0:00:30]}  h3 {[%clk 0:01:32]} 31. Nd3 {[%clk 0:00:25]}  Bxd3 {[%clk 0:01:32]} 32. Kxd3 {[%clk 0:00:24]}  Ke6 {[%clk 0:01:31]} 33. Bc7 {[%clk 0:00:20]}  b5 {[%clk 0:01:31]} 34. cxb5 {[%clk 0:00:19]}  axb5 {[%clk 0:01:29]} 35. Bb8 {[%clk 0:00:14]}  Ne7 {[%clk 0:01:21]} 36. Kd4 {[%clk 0:00:12]}  Nf5+ {[%clk 0:01:18]} 37. Kd3 {[%clk 0:00:11]}  Nh6 {[%clk 0:01:15]} 38. Bf4 {[%clk 0:00:09]}  Nf7 {[%clk 0:01:13]} 39. Kd4 {[%clk 0:00:10]}  Nd8 {[%clk 0:01:09]} 40. Kc5 {[%clk 0:00:09]}  Kd7 {[%clk 0:01:09]} 41. Kb6 {[%clk 0:00:09]}  Ne6 {[%clk 0:01:09]} 42. Kb7 {[%clk 0:00:08]}  Ng7 {[%clk 0:01:04]} 43. Kb6 {[%clk 0:00:08]}  Nf5 {[%clk 0:01:04]} 44. Ka5 {[%clk 0:00:07]}  Ne7 {[%clk 0:01:04]} 45. a4 {[%clk 0:00:06]}  bxa4 {[%clk 0:01:03]} 46. Kxa4 {[%clk 0:00:07]}  Ke6 {[%clk 0:01:02]} 47. b5 {[%clk 0:00:06]}  cxb5+ {[%clk 0:01:01]} 48. Kxb5 {[%clk 0:00:07]}  Kd5 {[%clk 0:01:02]} 49. Kb6 {[%clk 0:00:03]}  Ng6 {[%clk 0:01:00]} 0-1


[Site "https://www.chess.com"]

[Event "Titled Tuesday Blitz April 19 Early 2022"]
[White "Goryachkina, Aleksandra"]
[Black "Jegorovas, Aleksandras"]
[WhiteFideId "4147103"]
[BlackFideId "12801950"]
[WhiteElo "2426"]
[BlackElo "2247"]
[Result "1-0"]
[Round "07"]
[TimeControl "180+1"]
[Date "2022.04.19"]
[WhiteClock "0:00:10"]
[BlackClock "0:00:09"]

1. e4 {[%clk 0:02:59]}  e6 {[%clk 0:02:57]} 2. d4 {[%clk 0:02:58]}  d5 {[%clk 0:02:57]} 3. Nd2 {[%clk 0:02:58]}  Be7 {[%clk 0:02:54]} 4. e5 {[%clk 0:02:56]}  c5 {[%clk 0:02:53]} 5. c3 {[%clk 0:02:54]}  cxd4 {[%clk 0:02:49]} 6. cxd4 {[%clk 0:02:50]}  Nc6 {[%clk 0:02:49]} 7. Ndf3 {[%clk 0:02:47]}  Bb4+ {[%clk 0:02:45]} 8. Bd2 {[%clk 0:02:45]}  Qb6 {[%clk 0:02:45]} 9. Bxb4 {[%clk 0:02:35]}  Qxb4+ {[%clk 0:02:45]} 10. Qd2 {[%clk 0:02:35]}  Qb6 {[%clk 0:02:28]} 11. Bd3 {[%clk 0:02:33]}  Bd7 {[%clk 0:02:26]} 12. Ne2 {[%clk 0:02:29]}  Nb4 {[%clk 0:02:24]} 13. Nc3 {[%clk 0:02:02]}  Nxd3+ {[%clk 0:02:23]} 14. Qxd3 {[%clk 0:02:02]}  Ne7 {[%clk 0:02:21]} 15. O-O {[%clk 0:02:01]}  h6 {[%clk 0:02:18]} 16. Rfc1 {[%clk 0:01:41]}  O-O {[%clk 0:02:09]} 17. Nd1 {[%clk 0:01:34]}  Bb5 {[%clk 0:02:01]} 18. Qd2 {[%clk 0:01:33]}  Rfc8 {[%clk 0:01:50]} 19. Ne3 {[%clk 0:01:26]}  Be8 {[%clk 0:01:14]} 20. h3 {[%clk 0:01:21]}  a5 {[%clk 0:01:12]} 21. Nh4 {[%clk 0:01:13]}  Qb4 {[%clk 0:01:08]} 22. Rc3 {[%clk 0:01:02]}  Rc6 {[%clk 0:01:00]} 23. f4 {[%clk 0:00:57]}  Rac8 {[%clk 0:00:57]} 24. Rac1 {[%clk 0:00:54]}  Rxc3 {[%clk 0:00:56]} 25. bxc3 {[%clk 0:00:40]}  Qa3 {[%clk 0:00:54]} 26. f5 {[%clk 0:00:37]}  exf5 {[%clk 0:00:51]} 27. Nhxf5 {[%clk 0:00:37]}  Nxf5 {[%clk 0:00:51]} 28. Nxf5 {[%clk 0:00:33]}  Bd7 {[%clk 0:00:47]} 29. Nd6 {[%clk 0:00:27]}  Rc6 {[%clk 0:00:38]} 30. Rf1 {[%clk 0:00:20]}  Be6 {[%clk 0:00:32]} 31. Rf3 {[%clk 0:00:19]}  Rb6 {[%clk 0:00:32]} 32. Kh2 {[%clk 0:00:18]}  Rb2 {[%clk 0:00:31]} 33. Qf4 {[%clk 0:00:18]}  Qxa2 {[%clk 0:00:30]} 34. Rg3 {[%clk 0:00:18]}  Rf2 {[%clk 0:00:14]} 35. Qh4 {[%clk 0:00:14]}  Qe2 {[%clk 0:00:11]} 36. Ne8 {[%clk 0:00:11]}  Kh7 {[%clk 0:00:09]} 37. Rxg7+ {[%clk 0:00:10]} 1-0


[Site "https://www.chess.com"]

[Event "Titled Tuesday Blitz April 19 Early 2022"]
[White "Grischuk, Alexander"]
[Black "Vokhidov, Shamsiddin"]
[WhiteFideId "4126025"]
[BlackFideId "14204223"]
[WhiteElo "2762"]
[BlackElo "2611"]
[Result "1-0"]
[Round "07"]
[TimeControl "180+1"]
[Date "2022.04.19"]
[WhiteClock "0:00:31"]
[BlackClock "0:01:16"]

1. d4 {[%clk 0:03:00]}  Nf6 {[%clk 0:03:00]} 2. c4 {[%clk 0:03:01]}  e6 {[%clk 0:03:01]} 3. Nc3 {[%clk 0:03:01]}  Bb4 {[%clk 0:03:01]} 4. e3 {[%clk 0:03:01]}  O-O {[%clk 0:03:00]} 5. a3 {[%clk 0:03:02]}  Bxc3+ {[%clk 0:02:59]} 6. bxc3 {[%clk 0:03:02]}  b6 {[%clk 0:02:53]} 7. Bd3 {[%clk 0:03:03]}  d6 {[%clk 0:02:50]} 8. e4 {[%clk 0:03:02]}  e5 {[%clk 0:02:49]} 9. Ne2 {[%clk 0:03:02]}  Nfd7 {[%clk 0:02:46]} 10. h4 {[%clk 0:02:57]}  Nc6 {[%clk 0:02:47]} 11. h5 {[%clk 0:02:53]}  Ba6 {[%clk 0:02:46]} 12. Rh3 {[%clk 0:02:39]}  Na5 {[%clk 0:02:45]} 13. Ng3 {[%clk 0:02:38]}  exd4 {[%clk 0:02:09]} 14. cxd4 {[%clk 0:02:32]}  Qf6 {[%clk 0:02:06]} 15. Nf5 {[%clk 0:02:24]}  Rae8 {[%clk 0:02:01]} 16. Qg4 {[%clk 0:02:17]}  Nc5 {[%clk 0:01:54]} 17. Bh6 {[%clk 0:00:57]}  Bc8 {[%clk 0:01:26]} 18. Qxg7+ {[%clk 0:00:30]}  Qxg7 {[%clk 0:01:25]} 19. Nxg7 {[%clk 0:00:31]}  Nxd3+ {[%clk 0:01:16]} 20. Rxd3 {[%clk 0:00:32]}  Re5 {[%clk 0:01:16]} 21. dxe5 {[%clk 0:00:31]} 1-0


[Site "https://www.chess.com"]

[Event "Titled Tuesday Blitz April 19 Early 2022"]
[White "Hnydiuk, Aleksander"]
[Black "Pham, Tran Gia Phuc"]
[WhiteFideId "1109057"]
[BlackFideId "12415669"]
[WhiteElo "2374"]
[BlackElo "1789"]
[Result "0-1"]
[Round "07"]
[TimeControl "180+1"]
[Date "2022.04.19"]
[WhiteClock "0:00:02"]
[BlackClock "0:00:13"]

1. Nf3 {[%clk 0:03:00]}  Nf6 {[%clk 0:02:58]} 2. c4 {[%clk 0:03:00]}  c5 {[%clk 0:02:58]} 3. g3 {[%clk 0:02:58]}  Nc6 {[%clk 0:02:58]} 4. Bg2 {[%clk 0:02:58]}  d5 {[%clk 0:02:58]} 5. cxd5 {[%clk 0:02:55]}  Nxd5 {[%clk 0:02:59]} 6. d4 {[%clk 0:02:56]}  e6 {[%clk 0:02:55]} 7. O-O {[%clk 0:02:55]}  Be7 {[%clk 0:02:51]} 8. dxc5 {[%clk 0:02:55]}  Bxc5 {[%clk 0:02:51]} 9. Qc2 {[%clk 0:02:56]}  Be7 {[%clk 0:02:49]} 10. Rd1 {[%clk 0:02:53]}  O-O {[%clk 0:02:48]} 11. Nc3 {[%clk 0:02:48]}  Ndb4 {[%clk 0:02:40]} 12. Qb3 {[%clk 0:02:43]}  Qa5 {[%clk 0:02:40]} 13. Bd2 {[%clk 0:02:31]}  e5 {[%clk 0:02:34]} 14. a3 {[%clk 0:02:14]}  Be6 {[%clk 0:02:33]} 15. Qa4 {[%clk 0:01:54]}  Qxa4 {[%clk 0:02:27]} 16. Nxa4 {[%clk 0:01:55]}  Nc2 {[%clk 0:02:27]} 17. Rac1 {[%clk 0:01:50]}  N2d4 {[%clk 0:02:26]} 18. Nxd4 {[%clk 0:01:44]}  Nxd4 {[%clk 0:02:26]} 19. Nc3 {[%clk 0:01:34]}  Rab8 {[%clk 0:02:06]} 20. Be3 {[%clk 0:01:32]}  Nb3 {[%clk 0:02:04]} 21. Rb1 {[%clk 0:01:28]}  b6 {[%clk 0:02:02]} 22. Bd5 {[%clk 0:01:20]}  Rfd8 {[%clk 0:01:52]} 23. Bxe6 {[%clk 0:01:17]}  fxe6 {[%clk 0:01:51]} 24. Kf1 {[%clk 0:01:15]}  Kf7 {[%clk 0:01:50]} 25. Ke1 {[%clk 0:01:11]}  g5 {[%clk 0:01:47]} 26. h3 {[%clk 0:01:06]}  h5 {[%clk 0:01:45]} 27. Rxd8 {[%clk 0:01:06]}  Rxd8 {[%clk 0:01:44]} 28. Rd1 {[%clk 0:01:06]}  Rc8 {[%clk 0:01:44]} 29. Rd7 {[%clk 0:00:57]}  Ke8 {[%clk 0:01:14]} 30. Rxa7 {[%clk 0:00:56]}  Nd4 {[%clk 0:01:13]} 31. Kd2 {[%clk 0:00:44]}  Nc6 {[%clk 0:00:58]} 32. Rb7 {[%clk 0:00:38]}  Na5 {[%clk 0:00:56]} 33. Ra7 {[%clk 0:00:32]}  Nc4+ {[%clk 0:00:54]} 34. Kc2 {[%clk 0:00:28]}  g4 {[%clk 0:00:43]} 35. hxg4 {[%clk 0:00:26]}  hxg4 {[%clk 0:00:42]} 36. Kb3 {[%clk 0:00:25]}  Nxe3 {[%clk 0:00:39]} 37. fxe3 {[%clk 0:00:25]}  Rd8 {[%clk 0:00:38]} 38. Ne4 {[%clk 0:00:20]}  Rd1 {[%clk 0:00:31]} 39. Rb7 {[%clk 0:00:18]}  Re1 {[%clk 0:00:24]} 40. Rxb6 {[%clk 0:00:19]}  Rxe2 {[%clk 0:00:24]} 41. Rxe6 {[%clk 0:00:14]}  Rxe3+ {[%clk 0:00:23]} 42. Nc3 {[%clk 0:00:15]}  Rxg3 {[%clk 0:00:20]} 43. Rxe5 {[%clk 0:00:15]}  Kd7 {[%clk 0:00:20]} 44. Re4 {[%clk 0:00:14]}  Rg2 {[%clk 0:00:19]} 45. a4 {[%clk 0:00:14]}  g3 {[%clk 0:00:19]} 46. Rg4 {[%clk 0:00:14]}  Bd6 {[%clk 0:00:16]} 47. Ne4 {[%clk 0:00:14]}  Be5 {[%clk 0:00:16]} 48. Nc3 {[%clk 0:00:11]}  Rg1 {[%clk 0:00:14]} 49. a5 {[%clk 0:00:11]}  g2 {[%clk 0:00:14]} 50. a6 {[%clk 0:00:11]}  Kc6 {[%clk 0:00:14]} 51. a7 {[%clk 0:00:11]}  Kb7 {[%clk 0:00:14]} 52. Rg5 {[%clk 0:00:09]}  Bxc3 {[%clk 0:00:13]} 53. Rg8 {[%clk 0:00:02]}  Kxa7 {[%clk 0:00:13]} 0-1


[Site "https://www.chess.com"]

[Event "Titled Tuesday Blitz April 19 Early 2022"]
[White "Ianov, Viktor"]
[Black "Le, Tuan Minh"]
[WhiteFideId "14102730"]
[BlackFideId "12401153"]
[WhiteElo "2161"]
[BlackElo "2450"]
[Result "0-1"]
[Round "07"]
[TimeControl "180+1"]
[Date "2022.04.19"]
[WhiteClock "0:01:40"]
[BlackClock "0:01:30"]

1. Nf3 {[%clk 0:03:00]}  d5 {[%clk 0:02:58]} 2. g3 {[%clk 0:02:58]}  Nf6 {[%clk 0:02:54]} 3. Bg2 {[%clk 0:02:58]}  Nbd7 {[%clk 0:02:54]} 4. c4 {[%clk 0:02:56]}  dxc4 {[%clk 0:02:52]} 5. Qa4 {[%clk 0:02:55]}  a6 {[%clk 0:02:52]} 6. Qxc4 {[%clk 0:02:55]}  b5 {[%clk 0:02:51]} 7. Qc2 {[%clk 0:02:54]}  Bb7 {[%clk 0:02:51]} 8. O-O {[%clk 0:02:54]}  c5 {[%clk 0:02:51]} 9. a4 {[%clk 0:02:51]}  e6 {[%clk 0:02:51]} 10. d3 {[%clk 0:02:51]}  Be7 {[%clk 0:02:50]} 11. Nc3 {[%clk 0:02:51]}  b4 {[%clk 0:02:50]} 12. Nd1 {[%clk 0:02:49]}  O-O {[%clk 0:02:49]} 13. a5 {[%clk 0:02:48]}  Nd5 {[%clk 0:02:36]} 14. Ne3 {[%clk 0:02:47]}  Nxe3 {[%clk 0:02:28]} 15. Bxe3 {[%clk 0:02:46]}  Rc8 {[%clk 0:02:28]} 16. Nd2 {[%clk 0:02:45]}  Bxg2 {[%clk 0:02:26]} 17. Kxg2 {[%clk 0:02:45]}  Ne5 {[%clk 0:02:27]} 18. Nc4 {[%clk 0:02:43]}  Nc6 {[%clk 0:02:24]} 19. f3 {[%clk 0:02:35]}  Rb8 {[%clk 0:02:21]} 20. b3 {[%clk 0:02:33]}  Rb5 {[%clk 0:02:20]} 21. Qa2 {[%clk 0:02:30]}  Bf6 {[%clk 0:02:20]} 22. Rac1 {[%clk 0:02:28]}  Nxa5 {[%clk 0:02:17]} 23. Nxa5 {[%clk 0:02:16]}  Rxa5 {[%clk 0:02:16]} 24. Qc2 {[%clk 0:02:15]}  Qd5 {[%clk 0:01:46]} 25. Qc4 {[%clk 0:02:10]}  Bc3 {[%clk 0:01:41]} 26. Rxc3 {[%clk 0:02:04]}  bxc3 {[%clk 0:01:40]} 27. Qxc3 {[%clk 0:02:04]}  Rb5 {[%clk 0:01:40]} 28. Ra1 {[%clk 0:02:00]}  Rxb3 {[%clk 0:01:30]} 29. Qxc5 {[%clk 0:01:59]}  Qxc5 {[%clk 0:01:30]} 30. Bxc5 {[%clk 0:01:59]}  Ra8 {[%clk 0:01:31]} 31. Kf2 {[%clk 0:01:53]}  a5 {[%clk 0:01:31]} 32. d4 {[%clk 0:01:53]}  a4 {[%clk 0:01:31]} 33. g4 {[%clk 0:01:47]}  a3 {[%clk 0:01:31]} 34. h4 {[%clk 0:01:40]}  a2 {[%clk 0:01:31]} 35. d5 {[%clk 0:01:40]}  exd5 {[%clk 0:01:30]} 36. Bd4 {[%clk 0:01:40]}  Rb1 {[%clk 0:01:30]} 0-1


[Site "https://www.chess.com"]

[Event "Titled Tuesday Blitz April 19 Early 2022"]
[White "Ibarra Jerez, Jose Carlos"]
[Black "Seemann, Jakub"]
[WhiteFideId "2226332"]
[BlackFideId "21874697"]
[WhiteElo "2626"]
[BlackElo "2003"]
[Result "1-0"]
[Round "07"]
[TimeControl "180+1"]
[Date "2022.04.19"]
[WhiteClock "0:02:18"]
[BlackClock "0:02:01"]

1. e4 {[%clk 0:02:59]}  e6 {[%clk 0:02:59]} 2. d4 {[%clk 0:02:59]}  d5 {[%clk 0:03:00]} 3. Nc3 {[%clk 0:02:58]}  dxe4 {[%clk 0:03:00]} 4. Nxe4 {[%clk 0:02:57]}  Nd7 {[%clk 0:03:01]} 5. Bd3 {[%clk 0:02:57]}  Ngf6 {[%clk 0:03:00]} 6. Qe2 {[%clk 0:02:57]}  c5 {[%clk 0:02:59]} 7. Nxf6+ {[%clk 0:02:56]}  Nxf6 {[%clk 0:02:58]} 8. dxc5 {[%clk 0:02:56]}  Bxc5 {[%clk 0:02:58]} 9. Bg5 {[%clk 0:02:56]}  Qc7 {[%clk 0:02:53]} 10. O-O-O {[%clk 0:02:48]}  O-O {[%clk 0:02:51]} 11. Kb1 {[%clk 0:02:39]}  b6 {[%clk 0:02:34]} 12. Bxf6 {[%clk 0:02:35]}  gxf6 {[%clk 0:02:34]} 13. Bxh7+ {[%clk 0:02:20]}  Kxh7 {[%clk 0:02:01]} 14. Qh5+ {[%clk 0:02:18]}  Kg7 {[%clk 0:02:01]} 15. Qg4+ {[%clk 0:02:18]} 1-0


[Site "https://www.chess.com"]

[Event "Titled Tuesday Blitz April 19 Early 2022"]
[White "Jakubowski, Krzysztof"]
[Black "D`Arruda, Ricardo D."]
[WhiteFideId "1112848"]
[BlackFideId "100692"]
[WhiteElo "2365"]
[BlackElo "2423"]
[Result "1-0"]
[Round "07"]
[TimeControl "180+1"]
[Date "2022.04.19"]
[WhiteClock "0:00:40"]
[BlackClock "0:00:37"]

1. e4 {[%clk 0:03:00]}  c5 {[%clk 0:02:49]} 2. Nf3 {[%clk 0:02:59]}  Nc6 {[%clk 0:02:47]} 3. d4 {[%clk 0:02:59]}  cxd4 {[%clk 0:02:47]} 4. Nxd4 {[%clk 0:02:59]}  e5 {[%clk 0:02:48]} 5. Nb5 {[%clk 0:02:59]}  a6 {[%clk 0:02:48]} 6. Nd6+ {[%clk 0:02:57]}  Bxd6 {[%clk 0:02:49]} 7. Qxd6 {[%clk 0:02:57]}  Qe7 {[%clk 0:02:50]} 8. Qd1 {[%clk 0:02:52]}  Nf6 {[%clk 0:02:48]} 9. Nc3 {[%clk 0:02:51]}  d6 {[%clk 0:02:48]} 10. Bg5 {[%clk 0:02:50]}  Be6 {[%clk 0:02:48]} 11. Bxf6 {[%clk 0:02:47]}  Qxf6 {[%clk 0:02:49]} 12. Qxd6 {[%clk 0:02:46]}  Rd8 {[%clk 0:02:48]} 13. Qc5 {[%clk 0:02:44]}  Qg5 {[%clk 0:02:48]} 14. Qe3 {[%clk 0:02:41]}  Qxe3+ {[%clk 0:02:47]} 15. fxe3 {[%clk 0:02:42]}  Nb4 {[%clk 0:02:46]} 16. Rc1 {[%clk 0:02:42]}  Bxa2 {[%clk 0:02:45]} 17. b3 {[%clk 0:02:37]}  Rc8 {[%clk 0:02:43]} 18. Kd2 {[%clk 0:02:33]}  O-O {[%clk 0:02:28]} 19. Nd5 {[%clk 0:02:16]}  Rfd8 {[%clk 0:02:19]} 20. Bd3 {[%clk 0:02:13]}  Nxd3 {[%clk 0:01:40]} 21. Kxd3 {[%clk 0:02:03]}  f5 {[%clk 0:01:39]} 22. Rhd1 {[%clk 0:01:34]}  fxe4+ {[%clk 0:01:24]} 23. Kxe4 {[%clk 0:01:32]}  Kf7 {[%clk 0:01:22]} 24. Nb4 {[%clk 0:01:17]}  Rxd1 {[%clk 0:01:15]} 25. Rxd1 {[%clk 0:01:17]}  a5 {[%clk 0:01:15]} 26. Nxa2 {[%clk 0:01:17]}  Rxc2 {[%clk 0:01:15]} 27. Nc1 {[%clk 0:01:17]}  Rxg2 {[%clk 0:01:15]} 28. Rd7+ {[%clk 0:01:04]}  Kf6 {[%clk 0:01:14]} 29. Rxb7 {[%clk 0:01:02]}  Rxh2 {[%clk 0:01:13]} 30. Rb6+ {[%clk 0:01:01]}  Kf7 {[%clk 0:01:12]} 31. Nd3 {[%clk 0:00:59]}  Rh4+ {[%clk 0:01:07]} 32. Kd5 {[%clk 0:00:58]}  e4 {[%clk 0:00:59]} 33. Ne5+ {[%clk 0:00:58]}  Ke7 {[%clk 0:00:56]} 34. Re6+ {[%clk 0:00:54]}  Kf8 {[%clk 0:00:55]} 35. Ra6 {[%clk 0:00:51]}  Rh1 {[%clk 0:00:45]} 36. Rxa5 {[%clk 0:00:48]}  Rb1 {[%clk 0:00:45]} 37. Ke6 {[%clk 0:00:47]}  g6 {[%clk 0:00:43]} 38. Rb5 {[%clk 0:00:42]}  Kg7 {[%clk 0:00:40]} 39. Ng4 {[%clk 0:00:39]}  h5 {[%clk 0:00:39]} 40. Rb7+ {[%clk 0:00:39]}  Kf8 {[%clk 0:00:37]} 41. Nf6 {[%clk 0:00:40]} 1-0


[Site "https://www.chess.com"]

[Event "Titled Tuesday Blitz April 19 Early 2022"]
[White "Jaracz, Pawel"]
[Black "Orlov, Georgi"]
[WhiteFideId "1102222"]
[BlackFideId "2011271"]
[WhiteElo "2429"]
[BlackElo "2539"]
[Result "1-0"]
[Round "07"]
[TimeControl "180+1"]
[Date "2022.04.19"]
[WhiteClock "0:00:16"]
[BlackClock "0:00:01"]

1. e4 {[%clk 0:03:00]}  d6 {[%clk 0:02:59]} 2. f4 {[%clk 0:02:59]}  Nf6 {[%clk 0:03:00]} 3. Nc3 {[%clk 0:02:58]}  c5 {[%clk 0:02:57]} 4. Nf3 {[%clk 0:02:58]}  Nc6 {[%clk 0:02:57]} 5. Bb5 {[%clk 0:02:58]}  Bd7 {[%clk 0:02:56]} 6. d3 {[%clk 0:02:56]}  a6 {[%clk 0:02:56]} 7. Bxc6 {[%clk 0:02:56]}  Bxc6 {[%clk 0:02:57]} 8. O-O {[%clk 0:02:57]}  e5 {[%clk 0:02:57]} 9. Kh1 {[%clk 0:02:55]}  exf4 {[%clk 0:02:54]} 10. Bxf4 {[%clk 0:02:54]}  Be7 {[%clk 0:02:55]} 11. Nh4 {[%clk 0:02:35]}  g6 {[%clk 0:02:38]} 12. Nf3 {[%clk 0:02:31]}  O-O {[%clk 0:02:31]} 13. Bh6 {[%clk 0:02:29]}  Re8 {[%clk 0:02:31]} 14. Ng5 {[%clk 0:02:29]}  Bf8 {[%clk 0:02:20]} 15. Bxf8 {[%clk 0:02:28]}  Rxf8 {[%clk 0:02:20]} 16. Qf3 {[%clk 0:02:12]}  h6 {[%clk 0:02:08]} 17. Nh3 {[%clk 0:01:55]}  Kg7 {[%clk 0:02:05]} 18. Nf4 {[%clk 0:01:52]}  Qe7 {[%clk 0:02:02]} 19. Rf2 {[%clk 0:01:49]}  Qe5 {[%clk 0:01:57]} 20. Raf1 {[%clk 0:01:48]}  b5 {[%clk 0:01:54]} 21. Qg3 {[%clk 0:01:38]}  b4 {[%clk 0:01:46]} 22. Nd1 {[%clk 0:01:38]}  g5 {[%clk 0:01:27]} 23. Ne2 {[%clk 0:01:36]}  Nd7 {[%clk 0:01:15]} 24. Ne3 {[%clk 0:01:33]}  Kg8 {[%clk 0:00:59]} 25. Nf5 {[%clk 0:01:31]}  Kh7 {[%clk 0:00:50]} 26. Nxd6 {[%clk 0:01:29]}  f6 {[%clk 0:00:50]} 27. Nc4 {[%clk 0:01:24]}  Qe6 {[%clk 0:00:42]} 28. b3 {[%clk 0:01:15]}  a5 {[%clk 0:00:37]} 29. Ne3 {[%clk 0:01:01]}  Ne5 {[%clk 0:00:35]} 30. Nf5 {[%clk 0:01:00]}  Be8 {[%clk 0:00:25]} 31. Nf4 {[%clk 0:01:00]}  Qg8 {[%clk 0:00:22]} 32. Nd5 {[%clk 0:01:00]}  Ra6 {[%clk 0:00:19]} 33. Nfe7 {[%clk 0:00:52]}  Qe6 {[%clk 0:00:18]} 34. Rxf6 {[%clk 0:00:47]}  Rxf6 {[%clk 0:00:18]} 35. Rxf6 {[%clk 0:00:40]}  Qxf6 {[%clk 0:00:18]} 36. Nxf6+ {[%clk 0:00:40]}  Rxf6 {[%clk 0:00:19]} 37. Nf5 {[%clk 0:00:41]}  Ng6 {[%clk 0:00:17]} 38. Qc7+ {[%clk 0:00:40]}  Bf7 {[%clk 0:00:17]} 39. Qxc5 {[%clk 0:00:40]}  a4 {[%clk 0:00:16]} 40. Qxb4 {[%clk 0:00:39]}  axb3 {[%clk 0:00:15]} 41. axb3 {[%clk 0:00:40]}  Nf4 {[%clk 0:00:14]} 42. Qd4 {[%clk 0:00:38]}  Kg6 {[%clk 0:00:13]} 43. h3 {[%clk 0:00:37]}  h5 {[%clk 0:00:12]} 44. Ne7+ {[%clk 0:00:37]}  Kg7 {[%clk 0:00:11]} 45. Nf5+ {[%clk 0:00:36]}  Kg6 {[%clk 0:00:11]} 46. Kh2 {[%clk 0:00:36]}  h4 {[%clk 0:00:11]} 47. Qe5 {[%clk 0:00:33]}  Be6 {[%clk 0:00:11]} 48. Ne7+ {[%clk 0:00:25]}  Kf7 {[%clk 0:00:10]} 49. Nd5 {[%clk 0:00:25]}  Bxd5 {[%clk 0:00:08]} 50. exd5 {[%clk 0:00:25]}  Kg6 {[%clk 0:00:04]} 51. d6 {[%clk 0:00:24]}  Re6 {[%clk 0:00:04]} 52. Qc5 {[%clk 0:00:16]}  Re2 {[%clk 0:00:03]} 53. Qc6 {[%clk 0:00:17]}  Nh5 {[%clk 0:00:01]} 54. d7+ {[%clk 0:00:16]} 1-0


[Site "https://www.chess.com"]

[Event "Titled Tuesday Blitz April 19 Early 2022"]
[White "Jarocka, Liwia"]
[Black "Nguyen, Hong Anh"]
[WhiteFideId "21807558"]
[BlackFideId "12406732"]
[WhiteElo "1896"]
[BlackElo "2016"]
[Result "1-0"]
[Round "07"]
[TimeControl "180+1"]
[Date "2022.04.19"]
[WhiteClock "0:01:22"]
[BlackClock "0:00:47"]

1. d4 {[%clk 0:03:00]}  Nf6 {[%clk 0:02:58]} 2. Nf3 {[%clk 0:03:01]}  g6 {[%clk 0:02:59]} 3. c4 {[%clk 0:03:00]}  Bg7 {[%clk 0:02:59]} 4. Nc3 {[%clk 0:03:00]}  d5 {[%clk 0:03:00]} 5. cxd5 {[%clk 0:03:00]}  Nxd5 {[%clk 0:03:00]} 6. e4 {[%clk 0:03:01]}  Nxc3 {[%clk 0:03:00]} 7. bxc3 {[%clk 0:03:02]}  c5 {[%clk 0:03:01]} 8. Bb5+ {[%clk 0:03:02]}  Bd7 {[%clk 0:03:00]} 9. Bxd7+ {[%clk 0:03:02]}  Qxd7 {[%clk 0:03:00]} 10. O-O {[%clk 0:03:03]}  O-O {[%clk 0:02:59]} 11. Rb1 {[%clk 0:03:03]}  Nc6 {[%clk 0:02:57]} 12. d5 {[%clk 0:03:01]}  Ne5 {[%clk 0:02:57]} 13. Nxe5 {[%clk 0:03:01]}  Bxe5 {[%clk 0:02:58]} 14. c4 {[%clk 0:03:01]}  e6 {[%clk 0:02:57]} 15. Be3 {[%clk 0:03:01]}  exd5 {[%clk 0:02:55]} 16. cxd5 {[%clk 0:03:00]}  b6 {[%clk 0:02:54]} 17. Qc2 {[%clk 0:02:58]}  Rac8 {[%clk 0:02:50]} 18. Rfd1 {[%clk 0:02:57]}  Qd6 {[%clk 0:02:49]} 19. g3 {[%clk 0:02:56]}  Bg7 {[%clk 0:02:45]} 20. f4 {[%clk 0:02:56]}  c4 {[%clk 0:02:37]} 21. e5 {[%clk 0:02:55]}  Qa3 {[%clk 0:02:36]} 22. Bf2 {[%clk 0:02:52]}  Rfd8 {[%clk 0:02:30]} 23. d6 {[%clk 0:02:47]}  Qf3 {[%clk 0:02:24]} 24. Rd4 {[%clk 0:02:35]}  Qc6 {[%clk 0:02:18]} 25. a4 {[%clk 0:02:30]}  a6 {[%clk 0:02:15]} 26. Rdd1 {[%clk 0:02:10]}  b5 {[%clk 0:02:14]} 27. Rdc1 {[%clk 0:02:09]}  h5 {[%clk 0:02:13]} 28. Qb2 {[%clk 0:02:03]}  Rxd6 {[%clk 0:02:09]} 29. axb5 {[%clk 0:02:01]}  axb5 {[%clk 0:02:08]} 30. Qxb5 {[%clk 0:02:01]}  Rd2 {[%clk 0:02:05]} 31. Qxc6 {[%clk 0:01:58]}  Rxc6 {[%clk 0:02:06]} 32. Rc3 {[%clk 0:01:54]}  Ra2 {[%clk 0:01:29]} 33. Rb4 {[%clk 0:01:46]}  Rd2 {[%clk 0:01:12]} 34. Rbxc4 {[%clk 0:01:43]}  Ra6 {[%clk 0:01:12]} 35. Rc2 {[%clk 0:01:41]}  Ra1+ {[%clk 0:01:07]} 36. Kg2 {[%clk 0:01:41]}  Rdd1 {[%clk 0:01:07]} 37. Rc8+ {[%clk 0:01:38]}  Kh7 {[%clk 0:01:06]} 38. R8c7 {[%clk 0:01:38]}  Kg8 {[%clk 0:01:04]} 39. h4 {[%clk 0:01:36]}  Bf8 {[%clk 0:00:59]} 40. Rc8 {[%clk 0:01:35]}  Kg7 {[%clk 0:00:59]} 41. Rb8 {[%clk 0:01:27]}  Ba3 {[%clk 0:00:52]} 42. Rcc8 {[%clk 0:01:24]}  Rd2 {[%clk 0:00:49]} 43. Rg8+ {[%clk 0:01:21]}  Kh6 {[%clk 0:00:47]} 44. Rh8+ {[%clk 0:01:21]}  Kg7 {[%clk 0:00:47]} 45. Rbg8# {[%clk 0:01:22]} 1-0


[Site "https://www.chess.com"]